bitfinex-derivatives/quotes_ETHF0:USTF0_20210102
["timestamp","ask_amount","ask_price","bid_price","bid_amount"]
[1609620621839,0.15893616,768.06,767.37,9.69138]
[1609620623241,0.15893616,768.06,767.8,6.01438]
[1609620623442,0.15867243,767.82,767.8,6.01438]
[1609620624542,1.90406915,767.86,767.8,6.01438]
[1609620624543,0.15931962,767.97,767.8,6.01438]
[1609620625245,0.15931962,767.97,767.96,6.01438]
[1609620625443,0.15931962,767.97,767.96,9.34638]
[1609620625645,0.15931962,767.97,767.96,3.332]
[1609620628153,0.1594688,768.04,767.96,3.332]
[1609620629150,0.1594688,768.04,768.03,6.01438]
[1609620629352,3.18089742,768.09,768.03,6.01438]
[1609620630553,0.15930772,768.14,768.03,6.01438]
[1609620631151,0.15930772,768.14,768.13,6.01438]
[1609620632553,2.53369088,768.17,768.13,6.01438]
[1609620633754,0.15854886,768.25,768.13,6.01438]
[1609620634359,0.15837414,768.32,768.13,6.01438]
[1609620634957,0.15837414,768.32,768.13,5.01438]
[1609620635157,0.15837414,768.32,767.96,3.332]
[1609620635158,0.15837414,768.32,768.31,6.01438]
[1609620635558,0.1584577,768.4,768.31,6.01438]
[1609620636164,0.1584577,768.4,767.96,3.332]
[1609620636362,0.1584577,768.4,767.5,82.2789]
[1609620637262,0.15831115,768.32,768.21,6.01438]
[1609620637461,0.15831115,768.32,767.5,82.2789]
[1609620639263,6.01438,767.98,767.73,6.01438]
[1609620639862,1.90092114,768.24,767.73,6.01438]
[1609620640062,1.90092114,768.24,767.73,9.28338]
[1609620641164,1.90092114,768.24,768.08,6.01438]
[1609620641365,1.90092114,768.24,768.08,9.98438]
[1609620643266,3.166622,768.24,768.23,6.01438]
[1609620644370,0.15903683,768.28,768.23,6.01438]
[1609620645070,0.15903683,768.28,768.08,3.97]
[1609620645273,0.15903683,768.28,768.17,6.01438]
[1609620646171,0.15891267,768.25,768.17,6.01438]
[1609620647775,0.15842999,768.32,768.17,6.01438]
[1609620648175,0.15842999,768.32,768.08,3.97]
[1609620648377,3.16859989,768.53,767.73,3.269]
[1609620648579,3.16859989,768.53,767.73,3.086]
[1609620649181,3.16859989,768.53,768.48,6.01438]
[1609620649377,3.16859989,768.53,768.36,3.605]
[1609620650381,2.52941244,768.44,768.36,3.605]
[1609620650981,0.15831043,768.4,768.36,3.605]
[1609620651283,0.15831043,768.4,768.39,6.01438]
[1609620651484,0.15855117,768.54,768.39,6.01438]
[1609620652783,0.15862635,768.56,768.39,6.01438]
[1609620653383,0.15862635,768.56,768.55,6.01438]
[1609620653586,0.15862635,768.56,768.55,10.60838]
[1609620654687,0.15898512,768.64,768.55,10.60838]
[1609620655290,4.88938823,768.73,768.63,6.01438]
[1609620655993,11.6705,768.74,768.63,6.01438]
[1609620657297,11.6705,768.74,768.73,6.01438]
[1609620658509,11.6705,768.74,768.55,4.594]
[1609620658700,1.4335433,768.78,768.36,3.605]
[1609620658898,1.42855076,768.76,768.11,78.1414]
[1609620659298,1.42855076,768.76,768.46,6.01438]
[1609620659497,1.42855076,768.76,768.46,9.35738]
[1609620659898,0.15865671,768.52,768.46,9.35738]
[1609620660099,1.42791042,768.52,768.46,9.35738]
[1609620662099,1.42791042,768.52,768.46,3.343]
[1609620662300,2.53530754,768.5,768.46,3.343]
[1609620663001,2.53439616,768.51,768.46,3.343]
[1609620664000,3.16201889,768.5,768.46,3.343]
[1609620664503,3.16201889,768.5,768.18,6.01438]
[1609620665105,2.52827349,768.48,768.18,6.01438]
[1609620665307,2.52827349,768.48,768.33,6.01438]
[1609620665507,2.52827349,768.48,768.33,9.46938]
[1609620667306,2.52827349,768.48,768.47,6.01438]
[1609620667707,4.89088735,768.52,768.47,6.01438]
[1609620667907,4.89088735,768.52,768.47,20.62318]
[1609620668106,4.89088735,768.52,768.47,6.01438]
[1609620668307,3.15814354,768.55,768.47,6.01438]
[1609620669707,3.15814354,768.55,768.54,83.0477]
[1609620669908,3.15814354,768.55,768.54,86.5807]
[1609620670310,3.15814354,768.55,768.54,3.533]
[1609620671512,1.42992042,769.09,768.54,3.533]
[1609620672512,1.42742743,769.14,768.54,3.533]
[1609620673113,3.17206094,769.37,768.54,3.533]
[1609620673312,3.17206094,769.37,769.21,6.01438]
[1609620674011,3.17206094,769.37,769.16,3.442]
[1609620675015,1.89742594,769.24,769.16,3.442]
[1609620675316,6.01438,769.18,769.16,3.442]
[1609620675517,6.01438,769.18,768.94,6.01438]
[1609620676115,1.89742594,769.24,768.94,6.01438]
[1609620676316,3.529,769.31,768.94,6.01438]
[1609620676916,0.15777822,769.03,768.94,6.01438]
[1609620677418,0.15777822,769.03,769.02,6.01438]
[1609620677817,0.15782313,769.04,769.02,6.01438]
[1609620678816,0.15817934,769.15,769.02,6.01438]
[1609620679416,0.15817934,769.15,769.14,6.01438]
[1609620680016,1.26523644,769.15,769.14,6.01438]
[1609620681217,0.1582781,769.31,769.14,6.01438]
[1609620681416,0.1582781,769.31,769.06,3.217]
[1609620681817,0.15816868,769.18,769.06,3.217]
[1609620682417,0.15816868,769.18,768.87,3.755]
[1609620682617,0.15816868,769.18,768.54,3.533]
[1609620682821,0.15816868,769.18,768.25,96.2423]
[1609620683018,1.89613366,769.1,768.25,96.2423]
[1609620683419,6.01438,768.7,768.63,6.01438]
[1609620683818,6.01438,768.7,768.25,96.2423]
[1609620685318,6.01438,768.52,768.28,6.01438]
[1609620687422,6.01438,768.43,768.28,6.01438]
[1609620688624,0.15776675,768.75,768.28,6.01438]
[1609620688827,0.1576142,768.63,768.28,9.93738]
[1609620689325,6.01438,768.61,768.28,9.93738]
[1609620689725,0.15757101,768.72,768.28,9.93738]
[1609620690628,0.15762594,768.78,768.28,9.93738]
[1609620691429,0.15762594,768.78,768.57,6.01438]
[1609620691628,0.15762594,768.78,768.57,10.34438]
[1609620691828,0.15762594,768.78,768.58,12.304]
[1609620693229,0.15731336,768.95,768.57,10.34438]
[1609620693429,0.15731336,768.95,768.94,6.01438]
[1609620693628,0.15731336,768.95,768.94,9.08338]
[1609620693829,0.1576612,769.42,768.94,9.08338]
[1609620694930,0.15761079,769.37,768.94,9.08338]
[1609620695430,0.15761079,769.37,769.26,6.01438]
[1609620695629,0.15761079,769.37,769.26,10.90238]
[1609620695829,0.15763681,769.35,769.26,10.90238]
[1609620696538,0.15776732,769.41,769.26,10.90238]
[1609620698031,0.15775666,769.34,769.26,4.888]
[1609620699831,1.2613266,769.29,769.26,4.888]
[1609620700631,1.2613266,769.29,769.15,6.01438]
[1609620701134,0.15759821,769.28,769.15,6.01438]
[1609620702535,0.15756128,769.24,769.15,6.01438]
[1609620703134,0.15756128,769.24,768.94,3.069]
[1609620703334,0.15756128,769.24,768.57,4.33]
[1609620703535,0.15756128,769.24,768.91,6.01438]
[1609620703735,0.15750294,769.17,768.91,10.60338]
[1609620704037,0.15750294,769.17,768.91,4.589]
[1609620705138,0.15747379,769.12,768.91,4.589]
[1609620706640,1.88564029,768.99,768.91,4.589]
[1609620707439,6.01438,768.92,768.91,4.589]
[1609620708743,1.88564029,768.99,768.74,6.01438]
[1609620708943,1.88564029,768.99,768.74,10.56038]
[1609620709544,1.88564029,768.99,768.84,6.01438]
[1609620709945,1.88564029,768.99,768.74,4.546]
[1609620710445,1.25712292,768.93,768.74,4.546]
[1609620711449,6.01438,768.83,768.74,4.546]
[1609620713349,0.15736818,768.79,768.74,4.546]
[1609620713549,6.01438,768.75,768.74,4.546]
[1609620713948,6.01438,768.75,768.33,6.01438]
[1609620715150,0.15696882,768.6,768.33,6.01438]
[1609620715553,6.01438,768.45,768.33,6.01438]
[1609620715951,0.15696882,768.6,768.33,6.01438]
[1609620716153,0.15705534,768.63,768.33,6.01438]
[1609620716655,0.15715419,768.7,768.33,6.01438]
[1609620717454,6.17153419,768.7,768.63,6.01438]
[1609620717653,6.17153419,768.7,768.57,3.935]
[1609620717854,6.01438,768.7,768.57,3.935]
[1609620719454,6.01438,768.58,768.57,3.935]
[1609620720958,6.01438,768.58,767.73,109.1244]
[1609620721160,10.39138,768.58,765.27,15.0]
[1609620721363,10.39138,768.58,767.24,107.0363]
[1609620721560,6.01438,768.11,767.82,6.01438]
[1609620723561,6.01438,767.99,767.82,6.01438]
[1609620724162,6.01438,767.99,767.24,4.052]
[1609620725564,6.01438,767.99,767.33,6.01438]
[1609620727567,6.01438,767.8,767.51,6.01438]
[1609620729367,0.15676305,767.97,767.51,6.01438]
[1609620729568,0.78359958,767.94,767.92,6.01438]
[1609620731068,0.15687364,768.09,767.92,6.01438]
[1609620731267,0.15687364,768.09,767.92,10.44538]
[1609620731470,0.15687364,768.09,768.08,6.01438]
[1609620731670,0.15687364,768.09,768.08,10.49438]
[1609620731871,1.25498912,768.14,768.08,10.49438]
[1609620732071,1.26047091,768.43,768.08,10.49438]
[1609620733474,1.26047091,768.43,768.42,6.01438]
[1609620733671,1.26047091,768.43,768.42,9.65238]
[1609620733871,1.26196274,768.6,768.42,9.65238]
[1609620735073,3.15490685,768.83,768.42,9.65238]
[1609620735074,1.26240599,768.79,768.42,9.65238]
[1609620735472,1.26240599,768.79,768.64,6.01438]
[1609620735673,1.26240599,768.79,768.64,10.64738]
[1609620735873,1.26294325,768.78,768.64,10.64738]
[1609620736873,1.26223741,768.68,768.64,4.633]
[1609620737773,1.89366725,768.7,768.64,4.633]
[1609620738375,1.26281368,768.69,768.64,4.633]
[1609620739577,1.26281368,768.69,768.65,6.01438]
[1609620740777,1.26281368,768.69,768.65,10.68938]
[1609620741379,1.26281368,768.69,768.65,4.675]
[1609620741579,1.26240246,768.66,768.65,4.675]
[1609620743184,78.16630246,768.66,768.48,4.457]
[1609620743383,82.26530246,768.66,768.08,4.48]
[1609620743586,6.01438,768.09,767.81,6.01438]
[1609620743783,4.501,768.48,767.81,6.01438]
[1609620743984,4.501,768.48,767.81,10.67838]
[1609620744184,4.501,768.48,767.81,4.664]
[1609620744785,1.25703544,768.18,767.81,4.664]
[1609620745587,6.01438,767.91,767.81,4.664]
[1609620746591,1.25692452,768.13,767.81,4.664]
[1609620747593,1.25876544,768.05,767.93,6.01438]
[1609620748598,6.01438,768.17,767.93,6.01438]
[1609620748998,6.01438,768.17,767.81,4.664]
[1609620749197,6.01438,768.17,767.53,87.0471]
[1609620749397,1.26146345,768.12,767.53,87.0471]
[1609620749596,1.26146345,768.12,767.94,6.01438]
[1609620749997,1.26146345,768.12,767.94,10.88338]
[1609620751200,6.01438,768.17,767.94,10.88338]
[1609620751598,6.01438,768.17,767.94,4.869]
[1609620752401,6.01438,768.17,767.7,3.662]
[1609620752601,10.16838,768.17,767.7,3.662]
[1609620753202,22.29328,768.17,767.7,3.662]
[1609620753603,6.01438,767.71,767.7,3.662]
[1609620756006,6.01438,767.71,767.44,6.01438]
[1609620756404,1.26360436,767.92,767.44,6.01438]
[1609620756605,1.26360436,767.92,767.44,9.41838]
[1609620757104,4.522,768.01,767.44,9.41838]
[1609620757105,1.26375826,767.91,767.44,9.41838]
[1609620757706,6.01438,767.59,767.44,9.41838]
[1609620758806,6.01438,767.59,767.44,3.404]
[1609620759507,1.26243578,767.88,767.44,3.404]
[1609620759708,6.01438,767.48,767.44,3.404]
[1609620761311,4.735,767.83,767.44,3.404]
[1609620761711,6.01438,767.72,767.37,4.642]
[1609620762412,4.735,767.83,767.37,4.642]
[1609620762611,1.26170144,767.84,767.37,4.642]
[1609620762812,1.26267203,767.86,767.37,4.642]
[1609620763612,6.01438,767.82,767.49,6.01438]
[1609620765415,1.26594045,768.09,767.49,6.01438]
[1609620765615,1.26594045,768.09,767.82,6.01438]
[1609620765816,1.26594045,768.09,767.82,10.67538]
[1609620766820,1.26541096,768.03,767.82,10.67538]
[1609620767620,1.26541096,768.03,768.02,6.01438]
[1609620768220,6.01438,768.15,768.02,6.01438]
[1609620769726,1.27002784,768.29,768.14,6.01438]
[1609620770624,1.27145809,768.28,768.14,6.01438]
[1609620771626,1.27145809,768.28,768.27,6.01438]
[1609620773326,1.27145809,768.28,768.16,4.726]
[1609620775532,6.01438,768.37,768.16,4.726]
[1609620775731,6.01438,768.17,768.16,4.726]
[1609620776734,6.01438,768.17,767.98,4.917]
[1609620776934,6.01438,768.17,767.9,6.01438]
[1609620777135,6.01438,768.17,767.82,4.661]
[1609620777339,6.01438,768.17,767.39,88.1909]
[1609620777737,6.01438,767.98,767.81,6.01438]
[1609620779038,6.01438,767.98,767.39,88.1909]
[1609620779240,6.01438,767.98,744.85,0.1149449]
[1609620779442,6.01438,767.98,766.86,87.3347]
[1609620779639,6.01438,767.83,767.38,6.01438]
[1609620780639,14.1727,767.77,766.86,87.3347]
[1609620780839,6.01438,767.83,766.16,15.0]
[1609620781040,6.01438,767.83,766.17,15.0]
[1609620781241,11.7201,767.82,766.17,15.0]
[1609620781640,11.7201,767.82,767.32,6.01438]
[1609620781842,11.7201,767.82,767.32,9.22538]
[1609620783040,11.7201,767.82,767.32,3.211]
[1609620783640,6.01438,767.56,767.32,3.211]
[1609620785642,6.01438,767.35,767.32,3.211]
[1609620786541,0.4758462,767.65,767.32,3.211]
[1609620786944,0.4758462,767.65,767.1,6.01438]
[1609620787743,6.01438,767.38,767.1,6.01438]
[1609620790947,6.01438,767.38,766.19,15.0]
[1609620791150,6.01438,767.38,766.47,94.5493]
[1609620791348,6.01438,767.38,766.47,4.928]
[1609620791549,77.5912,767.28,766.47,4.928]
[1609620791749,6.01438,766.89,766.79,6.01438]
[1609620793652,77.5912,767.28,766.79,6.01438]
[1609620793852,77.5912,767.28,766.79,9.49938]
[1609620794854,92.5912,767.28,766.79,9.49938]
[1609620795255,77.5912,767.28,766.79,9.49938]
[1609620795454,0.47326994,767.36,766.79,9.49938]
[1609620795654,6.01438,766.8,766.79,9.49938]
[1609620796059,0.47304278,767.31,766.79,9.49938]
[1609620797059,11.6583,767.35,766.79,9.49938]
[1609620797060,0.47221754,767.15,766.79,9.49938]
[1609620797761,0.47221754,767.15,767.14,6.01438]
[1609620797961,11.6583,767.35,767.14,6.01438]
[1609620797962,0.47236028,767.32,767.14,9.07738]
[1609620798561,11.6583,767.35,767.14,9.07738]
[1609620798960,0.47245096,767.45,767.14,9.07738]
[1609620799761,0.47245096,767.45,767.14,3.063]
[1609620800563,1.25986922,767.51,767.14,3.063]
[1609620800564,6.01438,767.61,767.14,3.063]
[1609620801765,6.01438,767.37,767.18,6.01438]
[1609620802266,6.01438,767.37,767.14,3.063]
[1609620803067,6.01438,767.37,766.79,3.485]
[1609620803267,6.01438,767.37,766.67,84.1521]
[1609620803667,6.01438,766.87,766.8,6.01438]
[1609620805669,6.01438,766.87,766.63,6.01438]
[1609620805868,15.0,766.86,766.63,6.01438]
[1609620806268,6.01438,766.87,766.63,6.01438]
[1609620806468,6.01438,766.87,766.63,9.98638]
[1609620806669,6.01438,766.87,766.63,3.972]
[1609620807269,15.0,766.86,766.63,3.972]
[1609620807468,6.01438,766.87,766.63,3.972]
[1609620807670,6.01438,766.64,766.63,3.972]
[1609620809469,0.47349856,766.98,766.63,3.972]
[1609620809671,6.01438,766.78,766.63,3.972]
[1609620810973,0.47334793,766.93,766.63,3.972]
[1609620811373,0.47334793,766.93,766.5,6.01438]
[1609620811773,6.01438,766.74,766.5,6.01438]
[1609620812374,6.01438,766.74,766.11,104.1031]
[1609620812576,6.01438,766.74,765.73,89.1133]
[1609620813376,6.01438,766.74,765.74,15.0]
[1609620813576,6.01438,766.74,765.74,19.794]
[1609620813775,15.0,766.73,766.28,6.01438]
[1609620814376,15.0,766.73,765.74,4.794]
[1609620814776,15.0,766.72,765.74,4.794]
[1609620815577,78.8612,766.56,765.74,4.794]
[1609620815777,15.0,766.55,765.9,6.01438]
[1609620816179,78.8612,766.56,765.9,6.01438]
[1609620816379,0.47331854,766.63,765.9,9.49638]
[1609620816979,0.47331854,766.63,765.9,3.482]
[1609620816980,15.0,766.61,765.9,3.482]
[1609620817584,0.4736424,766.6,765.9,3.482]
[1609620819585,0.47313692,766.47,765.9,3.482]
[1609620819785,6.01438,765.98,765.9,3.482]
[1609620819985,0.47313692,766.47,765.9,3.482]
[1609620821385,0.47313692,766.47,765.8,6.01438]
[1609620821788,6.01438,765.95,765.8,6.01438]
[1609620822589,6.01438,765.95,765.74,4.794]
[1609620822788,6.01438,765.95,765.06,89.3833]
[1609620822989,6.01438,765.95,764.51,23.0322]
[1609620823590,97.6381,765.68,764.51,23.0322]
[1609620823792,6.01438,765.47,765.45,6.01438]
[1609620824690,11.8306,765.46,765.45,6.01438]
[1609620825090,11.8306,765.46,764.52,15.0]
[1609620825291,6.01438,765.47,764.52,15.0]
[1609620825492,106.7405,765.29,764.52,15.0]
[1609620825892,6.01438,765.26,765.19,6.01438]
[1609620827495,11.9487,766.23,765.19,6.01438]
[1609620827894,6.01438,765.67,765.19,6.01438]
[1609620828496,6.01438,765.67,765.26,15.0]
[1609620828895,0.47372592,765.99,765.26,15.0]
[1609620829296,0.07884579,765.79,765.26,15.0]
[1609620829496,0.47307472,765.79,765.26,15.0]
[1609620829895,0.47307472,765.79,765.57,6.01438]
[1609620830496,0.47307472,765.79,765.57,21.01438]
[1609620830901,7.89246327,766.23,765.57,21.01438]
[1609620830902,0.47371166,765.97,765.57,21.01438]
[1609620831498,0.47371166,765.97,765.82,90.1142]
[1609620831698,2.5732,765.96,765.83,15.0]
[1609620832098,0.47371166,765.97,765.83,15.0]
[1609620832498,1.26323111,766.03,765.83,15.0]
[1609620832697,1.26323111,766.03,765.84,15.0]
[1609620833300,1.26562711,766.3,765.84,15.0]
[1609620833700,5.54502879,766.6,765.01,7.6312]
[1609620833701,2.5716,766.38,765.26,15.0]
[1609620833901,2.5716,766.38,766.29,21.01438]
[1609620834302,1.27295347,766.68,766.29,21.01438]
[1609620834501,1.27295347,766.68,766.29,6.01438]
[1609620834902,1.27711875,766.76,766.29,6.01438]
[1609620835401,2.6052,766.75,766.29,6.01438]
[1609620835602,1.27711875,766.76,766.3,15.0]
[1609620835804,1.27711875,766.76,766.73,6.01438]
[1609620836007,3.1882969,766.78,766.73,6.01438]
[1609620837411,1.91486319,766.8,766.73,6.01438]
[1609620837808,2.6027,766.79,766.73,6.01438]
[1609620839912,2.6027,766.79,766.38,0.1533]
[1609620840310,0.03975294,766.91,766.38,0.1533]
[1609620841912,0.0397779,766.93,766.9,6.01438]
[1609620842915,8.19039197,767.54,766.9,6.01438]
[1609620842916,0.03973464,766.98,766.9,6.01438]
[1609620843116,2.5929,766.97,766.9,6.01438]
[1609620843717,2.54301685,767.17,766.38,0.1533]
[1609620843718,0.03975573,767.04,766.38,0.1533]
[1609620843919,0.03975573,767.04,766.65,6.01438]
[1609620845117,0.03981215,766.93,766.65,6.01438]
[1609620845917,0.03981215,766.93,766.38,0.1533]
[1609620847019,0.03978007,766.9,766.38,0.1533]
[1609620847920,6.01438,766.75,766.38,0.1533]
[1609620848121,1.27381629,766.65,766.38,0.1533]
[1609620848921,0.03978661,766.51,766.38,0.1533]
[1609620849922,6.01438,766.39,766.38,0.1533]
[1609620852322,6.01438,766.39,765.3,6.01438]
[1609620853425,6.01438,766.39,765.4,107.6749]
[1609620853924,6.01438,766.02,765.82,6.01438]
[1609620854425,6.01438,766.02,765.4,107.6749]
[1609620854623,6.01438,766.02,764.17,96.2866]
[1609620854624,6.01438,766.02,764.18,15.0]
[1609620854825,15.0,766.01,764.95,90.8475]
[1609620855225,0.03981159,765.82,764.95,90.8475]
[1609620855925,6.01438,765.56,765.3,6.01438]
[1609620856732,6.01438,765.56,764.95,90.8475]
[1609620856928,6.01438,765.56,764.1,15.0]
[1609620857930,6.01438,765.56,764.95,6.01438]
[1609620858430,15.0,765.55,764.1,15.0]
[1609620858829,6.01438,765.56,764.1,15.0]
[1609620860032,6.01438,765.32,764.94,6.01438]
[1609620860431,1.32385831,765.6,764.94,6.01438]
[1609620860833,1.33196384,765.5,764.94,6.01438]
[1609620861032,1.33196384,765.5,764.1,15.0]
[1609620861231,1.33196384,765.5,764.11,15.0]
[1609620861636,1.33578294,765.51,764.11,15.0]
[1609620862034,6.01438,765.26,764.76,6.01438]
[1609620862433,6.01438,765.26,764.77,15.0]
[1609620862632,6.01438,765.26,764.76,6.01438]
[1609620864032,6.01438,765.26,765.15,6.01438]
[1609620864637,1.33702424,765.28,765.15,6.01438]
[1609620865435,1.33702424,765.28,765.16,15.0]
[1609620865637,2.59301671,765.39,765.15,6.01438]
[1609620865638,3.24127088,765.47,765.26,15.0]
[1609620866035,3.24127088,765.47,765.46,6.01438]
[1609620870038,9.25565088,765.47,765.46,6.01438]
[1609620870238,3.24127088,765.47,765.46,6.01438]
[1609620871639,3.23757373,765.7,765.46,6.01438]
[1609620871938,6.01438,765.58,765.46,6.01438]
[1609620872542,3.23797907,765.9,765.46,6.01438]
[1609620873839,3.23797907,765.9,765.46,21.01438]
[1609620874040,3.23797907,765.9,765.89,6.01438]
[1609620874442,3.23797907,765.9,765.25,2.02929469]
[1609620875144,11.34102169,766.13,765.25,2.02929469]
[1609620875145,3.23378067,766.1,765.25,2.02929469]
[1609620875943,6.01438,765.35,765.31,6.01438]
[1609620876143,3.23378067,766.1,765.31,6.01438]
[1609620876544,15.0,765.94,765.31,6.01438]
[1609620877451,3.22590571,765.69,765.31,6.01438]
[1609620878252,3.22634663,765.7,765.31,6.01438]
[1609620879454,3.22658778,765.72,765.31,6.01438]
[1609620879953,6.01438,765.71,765.68,6.01438]
[1609620880156,3.22658778,765.72,765.68,6.01438]
[1609620880855,3.2283439,765.8,765.25,2.02929469]
[1609620882056,6.01438,765.6,765.44,6.01438]
[1609620882255,6.01438,765.6,765.25,2.02929469]
[1609620883061,4.9215614,765.59,765.25,2.02929469]
[1609620884062,6.01438,765.47,765.25,2.02929469]
[1609620885365,4.92332686,765.46,765.25,2.02929469]
[1609620885963,6.01438,765.26,765.25,2.02929469]
[1609620886163,6.01438,765.26,764.1,15.0]
[1609620886363,15.0,765.25,764.1,15.0]
[1609620886563,6.01438,765.26,764.1,15.0]
[1609620887871,15.0,765.25,764.1,15.0]
[1609620888075,6.01438,765.01,764.1,15.0]
[1609620888268,15.0,765.0,763.86,15.0]
[1609620888869,6.01438,765.01,763.87,15.0]
[1609620889268,21.01438,765.01,763.87,15.0]
[1609620889668,15.0,764.93,763.54,15.0]
[1609620889868,15.0,764.93,763.55,15.0]
[1609620890068,6.01438,764.54,764.28,6.01438]
[1609620890270,15.0,764.93,764.28,6.01438]
[1609620890471,3.22095082,764.94,764.28,6.01438]
[1609620890672,3.22636392,764.88,764.29,15.1127551]
[1609620891570,3.22921005,764.9,764.29,15.1127551]
[1609620891768,3.22921005,764.9,764.29,0.1127551]
[1609620891967,3.22921005,764.9,764.84,6.01438]
[1609620892769,6.01438,764.96,764.84,6.01438]
[1609620893769,4.9308843,764.89,764.29,0.1127551]
[1609620893969,6.01438,764.65,764.5,6.01438]
[1609620894168,4.9308843,764.89,764.5,6.01438]
[1609620894770,4.93112442,764.95,764.5,6.01438]
[1609620895673,4.93112442,764.95,764.29,0.1127551]
[1609620895872,2.60647912,764.87,764.29,0.1127551]
[1609620896071,6.01438,764.44,764.29,0.1127551]
[1609620896271,2.60647912,764.87,764.29,0.1127551]
[1609620897972,6.01438,764.64,764.29,0.1127551]
[1609620899974,6.01438,764.64,764.48,6.01438]
[1609620900175,2.6051237,764.78,764.48,9.73538]
[1609620901978,2.6051237,764.78,764.77,6.01438]
[1609620902378,2.6051237,764.78,764.77,5.01438]
[1609620902979,3.25640462,764.86,764.77,5.01438]
[1609620903381,3.25640462,764.86,764.78,15.0]
[1609620903985,3.25640462,764.86,764.85,6.01438]
[1609620905490,3.25640462,764.86,764.85,21.01438]
[1609620906489,3.25640462,764.86,764.85,6.01438]
[1609620909093,3.25640462,764.86,764.78,3.753]
[1609620909293,3.25640462,764.86,764.48,3.721]
[1609620909493,3.25640462,764.86,764.22,99.5196]
[1609620910095,3.25640462,764.86,764.48,6.01438]
[1609620910294,3.25640462,764.86,764.48,9.61838]
[1609620911695,3.25640462,764.86,764.48,3.604]
[1609620912298,0.97961191,764.69,764.48,3.604]
[1609620913596,0.97846241,764.83,764.48,3.604]
[1609620914196,6.01438,764.67,764.53,6.01438]
[1609620915400,0.9784753,764.82,764.53,6.01438]
[1609620915801,0.97646603,764.78,764.53,6.01438]
[1609620916200,0.97646603,764.78,764.77,6.01438]
[1609620916400,0.97646603,764.78,764.77,9.36138]
[1609620917403,0.97646603,764.78,764.77,3.347]
[1609620917604,0.97511899,764.91,764.77,3.347]
[1609620918204,6.01438,764.78,764.77,3.347]
[1609620918803,6.01438,764.78,764.48,3.604]
[1609620919003,6.01438,764.78,764.29,6.1271351]
[1609620919503,15.0,764.77,764.29,0.1127551]
[1609620920104,21.01438,764.3,764.29,0.1127551]
[1609620920306,21.01438,764.3,764.09,2.02929469]
[1609620921107,6.01438,764.3,764.09,2.02929469]
[1609620921306,21.01438,764.3,764.09,2.02929469]
[1609620921706,21.01438,764.3,763.53,6.01438]
[1609620922107,6.01438,763.7,763.53,6.01438]
[1609620923709,6.01438,763.7,762.62,15.0]
[1609620923908,14.5594,763.69,762.4,15.0]
[1609620924108,6.01438,763.58,763.29,6.01438]
[1609620924311,6.01438,763.58,762.4,15.0]
[1609620925310,6.01438,763.58,761.44,4.029]
[1609620925512,21.01438,763.58,761.81,15.0]
[1609620925909,21.01438,763.58,761.45,7.8187]
[1609620926110,21.01438,763.58,762.67,6.01438]
[1609620926312,21.01438,763.58,761.45,7.8187]
[1609620926713,73.9377,763.36,761.45,7.8187]
[1609620926913,15.0,763.35,761.45,7.8187]
[1609620927614,73.9377,763.36,761.45,7.8187]
[1609620927615,1.91682658,763.0,761.45,7.8187]
[1609620928213,6.01438,762.94,762.29,6.01438]
[1609620928413,21.01438,762.94,762.29,6.01438]
[1609620928612,6.01438,762.94,762.29,6.01438]
[1609620930214,6.01438,762.94,762.73,6.01438]
[1609620931015,10.96062572,762.94,762.73,6.01438]
[1609620931713,10.96062572,762.94,761.79,15.0]
[1609620931916,4.94624572,762.94,761.79,15.0]
[1609620932115,4.94624572,762.94,762.93,8.04367469]
[1609620932315,1.91477596,763.01,762.93,8.04367469]